Cogmind - Beta 10.2 @@@ ROGUE MODE // 2020.11.29 @ 23:10:24 // Halloween2020/ForbiddenLore Player: CrossedViper Result: Destroyed by 8R-AWN with 8R-AWN's Boregun Performance ------------- Evolutions (1) 500 Regions Visited (5) 1000 Robots Destroyed (47) 235 Value Destroyed (977) 977 Prototype IDs (24) 480 Alien Tech Used (0) 0 Bonus (-1504) -1504 TOTAL SCORE: 1688 Bonus ------- Aligned with FarCom 300 Friendly Fire -1804 Cogmind --------- Core Integrity 0/400 Matter 186/300 Energy 61/100 System Corruption 0% Temperature Cool (0) Movement Core (700) Ox13 Location -9/Exiles Parts ------- > --- POWER (1) -------- (None) > --- PROPULSION (2) --- (None) > --- UTILITY (3) ------ Large Storage Unit Large Storage Unit Actuator Array > --- WEAPON (3) ------- Mining Claw Mining Claw > --- INVENTORY (16) --- Light Ion Engine Aluminum Leg Titanium Leg Improved Heat Sink Advanced Terrain Scanner Improved Propulsion Shielding Hardened Light Armor Plating Pulse Rifle Beamcaster YOLO Cannon Minigun Katana Katana Peak State ------------ > --- POWER ------------ Light Deuterium Engine > --- PROPULSION ------- Advanced Treads Carbon-fiber Leg > --- UTILITY ---------- Large Storage Unit Large Storage Unit Actuator Array > --- WEAPON ----------- Pulse Rifle Improved Assault Rifle Minigun > --- INVENTORY -------- Light Angular Momentum Engine Titanium Leg Improved Heat Sink Advanced Terrain Scanner Improved Propulsion Shielding Hardened Light Armor Plating Beamcaster Rocket Launcher Mining Claw Mining Claw Mining Claw Katana [Rating: 26] Favorites ----------- Power Light Deuterium Engine Engine Light Deuterium Engine Propulsion Light Treads Treads Light Treads Leg Aluminum Leg Utility Large Storage Unit Device Actuator Array Storage Large Storage Unit Protection Core Shielding Weapon Mining Claw Energy Gun Pulse Rifle Energy Cannon Beam Cannon Ballistic Gun Assault Rifle Launcher Rocket Launcher Slashing Weapon Mining Claw Build | -11 -10 -10 -9 -9 -9 ------- Run | Scr Mat Min Mat Min Exi Slots Evolved 2 | . . . 2 . . Power . | . . . . . . Propulsion . | . . . . . . Utility 1 | . . . 1 . . Weapon 1 | . . . 1 . . Parts Attached 42 | . 8 15 11 1 7 Power 3 | . . 2 . . 1 Engine 3 | . . 2 . . 1 Core . | . . . . . . Reactor . | . . . . . . Propulsion 7 | . 3 3 1 . . Treads 4 | . 1 3 . . . Leg 3 | . 2 . 1 . . Wheel . | . . . . . . Hover . | . . . . . . Flight . | . . . . . . Utility 6 | . . 4 2 . . Device 1 | . . 1 . . . Storage 3 | . . 1 2 . . Processor . | . . . . . . Hackware . | . . . . . . Protection 2 | . . 2 . . . Artifact . | . . . . . . Weapon 26 | . 5 6 8 1 6 Energy Gun 3 | . . 1 2 . . Energy Cannon 1 | . . 1 . . . Ballistic Gun 7 | . 4 1 2 . . Ballistic Cannon . | . . . . . . Launcher 5 | . . . 3 . 2 Special Weapon . | . . . . . . Impact Weapon . | . . . . . . Slashing Weapon 10 | . 1 3 1 1 4 Piercing Weapon . | . . . . . . Special Melee Weapon . | . . . . . . Unidentified Prototypes 1 | . . . 1 . . Parts Lost 9 | . . 2 1 . 6 Power 2 | . . 1 . . 1 Propulsion 3 | . . . 1 . 2 Utility . | . . . . . . Weapon 4 | . . 1 . . 3 Highest Loss Streak 6 | . . 1 1 . 6 Average Slot Usage (%) 94 | . 85 96 95 99 97 Engine 11 | . 14 12 11 11 10 Treads 14 | . . 26 19 11 10 Leg 10 | . 27 1 2 11 11 Device 7 | . . 6 11 11 11 Storage 16 | . 14 7 21 22 22 Protection 3 | . . 12 . . . Energy Gun 3 | . . 3 3 11 3 Energy Cannon 1 | . . 5 . . . Ballistic Gun 12 | . 27 6 14 11 3 Slashing Weapon 11 | . . 11 11 10 23 Naked Turns . | . . . . . . Heaviest Build 55 | 12 13 31 51 50 55 Greatest Support 42 | 20 20 42 42 15 15 Greatest Overweight (x) 3 | . . . 3 3 3 Average Overweight (x) 1 | . . . 1 3 3 Largest Inventory Capacity 16 | . 6 10 16 16 16 Average Capacity 11 | . 6 6 15 16 16 Most Carried 16 | . 6 10 13 15 16 Average Carried 9 | . 5 4 11 13 15 Final Capacity 16 | 6 6 10 16 16 16 Final Carried 15 | 6 6 10 12 15 14 Class Distribution -------------------- 95% | Mutant 4% | Gunner Dominant Class ---------------- Mutant | -10/Materials Mutant | -10/Mines Mutant | -9/Materials Mutant | -9/Mines Mutant | -9/Exiles Resources | -11 -10 -10 -9 -9 -9 ----------- Run | Scr Mat Min Mat Min Exi Matter Collected 936 | 200 186 233 296 21 . Remotely . | . . . . . . Salvage Created 1643 | . 344 327 605 356 11 Parts 90 | . 14 15 46 15 . Haulers Intercepted 1 | . . . 1 . . Recyclers Shooed 1 | . . 1 . . . Parts Field Recycled . | . . . . . . Retrieved Matter . | . . . . . . Parts Self-Destructed . | . . . . . . Prevented . | . . . . . . Kills | -11 -10 -10 -9 -9 -9 ------- Run | Scr Mat Min Mat Min Exi Combat Hostiles Destroyed 32 | . 8 3 16 3 2 Melee 4 | . . . 1 3 . Guns 16 | . 8 2 6 . . Cannons 1 | . . 1 . . . AOE 11 | . . . 9 . 2 Classes Destroyed 10 | . 2 3 3 1 1 Worker 5 | . . 1 3 1 . Builder 3 | . 1 . 1 1 . Hauler 1 | . . . 1 . . Recycler 5 | . . 1 3 1 . Watcher 1 | . . . 1 . . Swarmer 10 | . . . 10 . . Grunt 15 | . 8 1 4 2 . Duelist 1 | . . . . 1 . Sentry 4 | . . 2 2 . . Assembled 7 | . . . . . 7 Thug 1 | . . 1 . . . Best Kill Streak 10 | . 2 1 10 3 2 Combat Bots Only 7 | . 2 1 7 3 2 Max Kills in Single Turn 5 | . 1 1 4 1 5 Gunslinging . | . . . . . . Exploded 3 | . . . 3 . 1 Melee 1 | . . . 1 1 . Uniques/NPCs Destroyed 1 | . . . . 1 . YI-UF0 (-9/Mines) Combat | -11 -10 -10 -9 -9 -9 -------- Run | Scr Mat Min Mat Min Exi Damage Taken 2451 | . 323 684 459 139 846 Core 619 | . 46 164 85 32 292 Absorbed by Shields . | . . . . . . Core Remaining (%) 58 | 100 . 16 . . . Volleys Fired 94 | . 34 32 24 . 4 Largest 3 | . 2 2 3 . 2 Hottest 111 | . 40 80 111 . 63 Shots Fired 172 | . 68 44 53 . 7 Gun 141 | . 68 26 47 . . Cannon 18 | . . 18 . . . Launcher 13 | . . . 6 . 7 Special . | . . . . . . Kinetic 130 | . 68 26 36 . . Thermal 29 | . . 18 11 . . Explosive 13 | . . . 6 . 7 Electromagnetic . | . . . . . . Robot Hit Streak 17 | . 7 17 12 . 2 Robot Miss Streak 4 | . 2 4 1 . 2 Penetration Max . | . . . . . . Secondary Targets 5 | . 3 1 1 . . Max Gunslinging Chain 1 | . 1 1 1 . . Shots Hit Robots 161 | . 44 40 45 12 20 Core Hits 80 | . 18 9 31 8 14 Critical Hits 2 | . 1 . 1 . . Critical Kills 2 | . 1 . 1 . . Critical Parts Destroyed . | . . . . . . Melee Attacks 63 | . 5 7 12 14 25 Impact . | . . . . . . Slashing 63 | . 5 7 12 14 25 Piercing . | . . . . . . Sneak Attacks 12 | . . 3 5 4 . Combat Hostiles . | . . . . . . Follow-up Attacks 10 | . . 1 1 . 8 Damage Inflicted 4208 | . 448 765 1681 420 894 Guns 1300 | . 448 300 552 . . Cannons 176 | . . 176 . . . Explosions 1170 | . . . 698 . 472 Melee 1557 | . . 284 431 420 422 Ramming 5 | . . 5 . . . Kinetic 1165 | . 448 300 417 . . Thermal 311 | . . 176 135 . . Explosive 1170 | . . . 698 . 472 Electromagnetic . | . . . . . . Impact . | . . . . . . Slashing 1557 | . . 284 431 420 422 Piercing . | . . . . . . Highest Corruption . | . . . . . . Average Corruption . | . . . . . . Corruption Purged . | . . . . . . Overload Shots . | . . . . . . Overflow Damage 248 | . . 64 115 36 33 Projectiles . | . . . . . . Explosions 57 | . . . 24 . 33 Melee 191 | . . 64 91 36 . Knockbacks . | . . . . . . Impact . | . . . . . . Kinetic . | . . . . . . Secondary . | . . . . . . Self-Inflicted Damage 16 | . . . . . 16 Shots 1 | . . . . . 1 Rammed 1 | . . 1 . . . Targets Rammed 1 | . . 1 . . . Kicked . | . . . . . . Crushed . | . . . . . . Highest Temperature 336 | . 18 336 312 . 20 Average Temperature 80 | . 7 102 95 . 17 Received Heat Transfer 569 | . 174 201 132 42 20 Siege Activations . | . . . . . . Robots Corrupted . | . . . . . . Combat Hostiles . | . . . . . . Parts Fried . | . . . . . . Impact Corruptions . | . . . . . . Robots Melted . | . . . . . . Combat Hostiles . | . . . . . . Parts Melted . | . . . . . . Heat Transferred 666 | . . 370 296 . . Parts Sabotaged . | . . . . . . Parts Stolen . | . . . . . . Parts Stripped . | . . . . . . Power Chain Reactions . | . . . . . . Missiles Intercepted . | . . . . . . Alert | -11 -10 -10 -9 -9 -9 ------- Run | Scr Mat Min Mat Min Exi Peak Influence 354 | . 238 112 354 199 . Initial 114 | . . 22 . 114 . Average 107 | . 107 39 200 122 . Maximum Alert Level 1 | . 1 . 1 . . Low Security (%) 81 | . 78 100 40 100 . Level 1 18 | . 21 . 59 . . Level 2 . | . . . . . . Level 3 . | . . . . . . Level 4 . | . . . . . . Level 5 . | . . . . . . High Security . | . . . . . . Max Security . | . . . . . . Squads Dispatched 4 | . 2 1 1 . . Investigation 1 | . . 1 . . . Extermination . | . . . . . . Reinforcement 3 | . 2 . 1 . . Assault . | . . . . . . Garrison . | . . . . . . Intercept . | . . . . . . Construction Impeded . | . . . . . . Haulers Reinforced . | . . . . . . Stealth | -11 -10 -10 -9 -9 -9 --------- Run | Scr Mat Min Mat Min Exi Distress Signals 2 | . . . 1 1 . Communications Jammed . | . . . . . . Distress Signals . | . . . . . . Times Spotted 51 | . 17 4 24 3 3 Peak Tracking Total 6 | . 4 2 6 3 4 Tactical Retreats 3 | . 1 1 1 . . Traps | -11 -10 -10 -9 -9 -9 ------- Run | Scr Mat Min Mat Min Exi Traps Triggered 3 | . . 2 1 . . Indirectly . | . . . . . . Trap Hack Attempts . | . . . . . . Triggered . | . . . . . . Disarmed . | . . . . . . Reprogrammed . | . . . . . . Reused . | . . . . . . Traps Extracted . | . . . . . . Installed . | . . . . . . Triggered . | . . . . . . Machines | -11 -10 -10 -9 -9 -9 ---------- Run | Scr Mat Min Mat Min Exi Machines Disabled 5 | . . . 2 . 3 Max in Single Turn 3 | . . . 1 . 3 Machines Sabotaged . | . . . . . . Garrisons Compromised . | . . . . . . Overloaded Fab Kills . | . . . . . . Fab Network Shutdowns . | . . . . . . Hacking | -11 -10 -10 -9 -9 -9 --------- Run | Scr Mat Min Mat Min Exi Machines Accessed 5 | . 1 2 . . 2 Terminals 1 | . 1 . . . . Fabricators . | . . . . . . Repair Stations . | . . . . . . Recycling Units . | . . . . . . Scanalyzers . | . . . . . . Garrison Access . | . . . . . . Total Hacks 5 | . 1 2 . . 2 Successful 5 | . 1 2 . . 2 Failed . | . . . . . . Catastrophic . | . . . . . . Database Lockouts . | . . . . . . Manual 2 | . 1 . . . 1 Terminals 1 | . 1 . . . . Fabricators . | . . . . . . Repair Stations . | . . . . . . Recycling Units . | . . . . . . Scanalyzers . | . . . . . . Garrison Access . | . . . . . . Terminal Hacks 5 | . 1 2 . . 2 Record 1 | . . . . . 1 Open Door 2 | . . 2 . . . Branch Access Points 1 | . 1 . . . . EX-Prototype ID Bank 1 | . . . . . 1 Fabricator Hacks . | . . . . . . Repair Station Hacks . | . . . . . . Recycling Unit Hacks . | . . . . . . Scanalyzer . | . . . . . . Garrison Access Hacks . | . . . . . . Unauthorized Hacks . | . . . . . . Terminals . | . . . . . . Fabricators . | . . . . . . Repair Stations . | . . . . . . Recycling Units . | . . . . . . Scanalyzers . | . . . . . . Garrison Access . | . . . . . . Data Cores Recovered . | . . . . . . Used . | . . . . . . Hacking Detections . | . . . . . . Full Trace Events . | . . . . . . Feedback Events . | . . . . . . Feedback Blocked . | . . . . . . Robot Schematics Acquired . | . . . . . . Robots Built . | . . . . . . Matter . | . . . . . . Time . | . . . . . . Total Robot Build Rating . | . . . . . . Part Schematics Acquired . | . . . . . . Parts Built . | . . . . . . Matter . | . . . . . . Time . | . . . . . . Total Part Build Rating . | . . . . . . Parts Repaired . | . . . . . . Time . | . . . . . . Parts Recycled . | . . . . . . Recycled Matter . | . . . . . . Retrieved Matter . | . . . . . . Retrieved Components . | . . . . . . Parts Scanalyzed . | . . . . . . Part Schematics Acquired . | . . . . . . Parts Damaged . | . . . . . . Bothacking | -11 -10 -10 -9 -9 -9 ------------ Run | Scr Mat Min Mat Min Exi Used RIF Installer . | . . . . . . Robots Hacked . | . . . . . . Non-combat . | . . . . . . Combat . | . . . . . . Robot Hacks Applied . | . . . . . . Relay Couplers Released . | . . . . . . Robots Rewired . | . . . . . . Allies Hacked . | . . . . . . Hacks Repelled . | . . . . . . Allies | -11 -10 -10 -9 -9 -9 -------- Run | Scr Mat Min Mat Min Exi Total Allies 1 | . . 1 . . . Largest Group 1 | . . 1 . . . Highest-Rated Group 31 | . . 31 . . . Highest-Rated Ally 31 | . . 31 . . . Total Orders . | . . . . . . Ally Attacks . | . . . . . . Total Damage . | . . . . . . Kills . | . . . . . . Allies Corrupted . | . . . . . . Allies Melted . | . . . . . . Intel | -11 -10 -10 -9 -9 -9 ------- Run | Scr Mat Min Mat Min Exi Robot Analysis Total . | . . . . . . Derelict Logs Recovered 1 | . . 1 . . . Drone Launches . | . . . . . . Drone Recoveries . | . . . . . . Exploration | -11 -10 -10 -9 -9 -9 ------------- Run | Scr Mat Min Mat Min Exi Turns Passed 2955 | . 607 838 535 451 524 Spaces Moved 1454 | 1 388 433 225 193 214 Core . | . . . . . . Treads 633 | . 20 433 180 . . Legs 821 | 1 368 . 45 193 214 Wheels . | . . . . . . Hover . | . . . . . . Flight . | . . . . . . Fastest Speed 120 | 120 120 152 152 210 210 Average Speed 166 | 120 122 159 179 210 210 Slowest Speed 210 | 120 160 160 210 210 210 Overloaded Moves . | . . . . . . Propulsion Burnouts . | . . . . . . Robots Hopped . | . . . . . . Cave-ins Triggered . | . . . . . . Exploration Rate (%) 43 | 2 69 79 31 28 49 Regions Visited 5 Branch Regions 3 Pre-discovered Areas 3 | . . 1 . 1 1 Known Exits Taken 1 | . 1 . . . . Unknown Exits Taken 4 | 1 . 1 1 1 . Scrap Searched 4 | . . 2 . 2 . Spaces Dug 1 | . 1 . . . . Terrain Destroyed 79 | . 1 . 43 . 35 Melee 1 | . 1 . . . . Projectile . | . . . . . . AOE 78 | . . . 43 . 35 Terrain Rammed . | . . . . . . Walls Destroyed . | . . . . . . Machines Disabled . | . . . . . . Actions | -11 -10 -10 -9 -9 -9 --------- Run | Scr Mat Min Mat Min Exi Total 1726 | . 452 526 293 211 244 Wait 42 | . 4 19 18 1 . Move 1449 | . 387 432 224 192 214 Hop . | . . . . . . Pick Up 24 | . 6 8 6 3 1 Fast Attach 10 | . . 9 1 . . Attach 7 | . 1 . 3 1 2 Detach . | . . . . . . Swap 25 | . 7 6 7 . 5 Drop 23 | . 8 13 1 . 1 Fire 94 | . 34 32 24 . 4 Melee 51 | . 5 6 9 14 17 Ram . | . . . . . . Kick . | . . . . . . Crush 1 | . . 1 . . . Escape Stasis . | . . . . . . Rewire . | . . . . . . Trap . | . . . . . . Miscellaneous . | . . . . . . Route ------- -11/Scrapyard -10/Materials (discovered 3 exits: [*Mat x2] / *Min) -10/Mines -9/Materials (discovered 3 exits: [*Mat] / [*Min x2]) -9/Mines (discovered 3 exits: [*Mat x2] / *Exi) -9/Exiles History --------- Turn | Location | Event 1 | -11/Scrapyard | Discovered new exit (range 0) 1 | -11/Scrapyard | Entered Materials 265 | -10/Materials | Discovered new exit (range 8) 312 | -10/Materials | Build established: Mutant 370 | -10/Materials | Identified exit to Mines 375 | -10/Materials | Discovered new exit (range 13) 608 | -10/Materials | Entered Mines 792 | -10/Mines | Core integrity fell below 50% 893 | -10/Mines | Received a Rocket Launcher from a helpful Derelict 1002 | -10/Mines | Learned location of Storage (-9) 1020 | -10/Mines | Met a Derelict shopkeep closing up shop 1249 | -10/Mines | Discovered new exit (range 5) 1250 | -10/Mines | Received a Mining Laser from a helpful Derelict 1369 | -10/Mines | Met a Derelict who couldn't figure out how to use a Trap Extractor 1398 | -10/Mines | Core integrity fell below 20% 1446 | -10/Mines | Entered Materials 1446 | -9/Materials | Evolved 2 slots: Utility x1, Weapon x1 1479 | -9/Materials | Discovered new exit (range 8) 1662 | -9/Materials | Destroyed 7 combat bots 1688 | -9/Materials | Discovered new exit (range 8) 1964 | -9/Materials | Discovered new exit (range 9) 1981 | -9/Materials | Entered Mines 1994 | -9/Mines | Discovered new exit (range 10) 1997 | -9/Mines | YI-UF0 nonchalantly dropped a Grenade Launcher on the ground 2008 | -9/Mines | Destroyed YI-UF0 2109 | -9/Mines | Assembled infested the area 2224 | -9/Mines | Discovered new exit (range 11) 2423 | -9/Mines | Deemed a non-threat by the Exiles lab entrance 2423 | -9/Mines | Discovered new exit (range 5) 2432 | -9/Mines | Entered Exiles 2485 | -9/Exiles | Met 8R-AWN 2521 | -9/Exiles | Met EX-HEX 2584 | -9/Exiles | Met EX-BIN 2607 | -9/Exiles | Aligned with FarCom system 2609 | -9/Exiles | Given EX-Vault access code 2660 | -9/Exiles | Opened EX-Vault 2679 | -9/Exiles | Found YOLO Cannon 2726 | -9/Exiles | Warned to stay clear of 0b10 Research branches 2793 | -9/Exiles | Learned location of Zion (-6) 2798 | -9/Exiles | Met EX-DEC 2883 | -9/Exiles | Attacked by the Exiles 2912 | -9/Exiles | Core integrity fell below 50% 2933 | -9/Exiles | Core integrity fell below 20% 2956 | -9/Exiles | Destroyed by 8R-AWN with 8R-AWN's Boregun Last Messages --------------- 02934_ HV Slug penetrates Earth. 02935_ The unstable cave ceiling collapses. 02936_ Penetrated by HV Slug. 02936_ HV Slug penetrates Earth. 02936_ HV Slug penetrates Machine. 02939_ Mining Claw follow-up attack on 8R-AWN. 02940_ Penetrated by HV Slug. 02940_ HV Slug penetrates Earth. 02940_ Penetrated by HV Slug. 02940_ HV Slug penetrates Earth. 02945_ Penetrated by HV Slug. 02945_ Destroyed Prototype Protection. 02948_ Penetrated by HV Slug. 02948_ Mining Claw follow-up attack on 8R-AWN. 02952_ Penetrated by HV Slug. 02952_ Critical hit. 02952_ Carbon-fiber Leg destroyed. 02952_ Penetrated by HV Slug. 02955_ Mining Claw follow-up attack on 8R-AWN. 02956_ Penetrated by HV Slug. Map ----- +----------------------------------------------------+ | """#??????????????????????????????????????? | | """#??????????????????????????????????????? | | """"??????????????????????????????????????? | | """#??????????????????????????????????????? | | "X" """"??????????????????????????????????????? | | """ #??????????????????????????????????????? | | """""""""#??????????????????????????????????????? | | ###########??????????????????????????????????????? | | #????????????????????????????????????????????????? | | #????????????????????????????????????????????????? | | ##???????????????????????????????????????????????? | | ##???###########????????????????????????????????? | | #####"""""""""##???????????????????????????????? | | " """ """"##??????????????????????????????? | | "" " #??????????????????????????????? | | " """#??????????????????????????????? | | " "#???????????#####??????????????? | | " "##?????????##" #??????????????# | | ""###???????#" #?????????????## | | * " "#??????##" ##????????????# | | "#????### ###????????### | | #""" ##???# ########## | | ##""" ##### #""""## | | ?#"""" ## * | | ?#"" g ## * | | ??""" @ #### | | ?? ""#?#"""""#### | | ? ;"""##?#######??#### | | ? #;####??????????????##### | | ? # #?????????????????????## | | ? ### #??????????????????????? | | ?? " # #??????????????????????? | | ????" " "" ## #??????????????????????? | | ??????" "?" ### #??????????????????????? | | ??????????? ## #??? ???????????????????????? | | ????????????# ???? ???????????????????????? | | ?????????????? ###???? ???????????????????????? | | ???????????????###??????? ???????????????????????? | | ????????????????????????? ???????????????????????? | | ????????????????????????? ???????????????????????? | | ????????????????????????? ???????????????????????? | | ?????????????????????????????????????????????????? | | ?????????????????????????????????????????????????? | | ?????????????????????????????????????????????????? | | ?????????????????????????????????????????????????? | | ?????????????????????????????????????????????????? | | ?????????????????????????????????????????????????? | | ?????????????????????????????????????????????????? | | ?????????????????????????????????????????????????? | | ?????????????????????????????????????????????????? | +----------------------------------------------------+ Best States ------------- Heat Dissipation 28 Energy Generation 18 Energy Capacity 250 Matter Stores 300 Matter Capacity 300 Sight Range 16 Terrain Scan Density 10 Armor Coverage 150 Core Shielding 20 Evasion (%) 40 Recoil Reduction 2 Item Schematics ----------------- None Robot Schematics ------------------ None Fabricated ------------ Nothing Alien Tech Used ----------------- None Achievements -------------- None Challenges ------------ None Game ------ Seed ScatterGaussWand Manual? 0 Play Time 00:19:12 Cumulative 115.8 hours Start 2020.11.29 @ 22:53:56 End 2020.11.29 @ 23:10:24 Sessions 1 Manual Loads 0 Difficulty Rogue Special Mode Halloween2020/ForbiddenLore Game No. 118 Rogue 111 Adventurer 0 Explorer 7 Win Type - Total 1 Types 0/0/1/0/0/0/0/0/0 Lore% 55 Gallery% 82 Achievement% 64 Wizard Run 0 Options --------- ASCII 0 Keyboard 0 Movement Numpad Keybinds 0 Fullscreen 1 Font 18/X11 Map View 76x50 Tactical HUD 1 Map Filters NONE Filters NONE Steam 1 RUN: 3e6c4147-7417-45b3-a4bd-d7cb176b9ed1